fUSD/lending_fUSD_20240109
["ID","MTS","AMOUNT","RATE_DAILY","PERIOD"]
[310942845,1704825046466,-1743.044394,0.00035342,2]
[310942846,1704825046475,-176.909052,0.00035397,2]
[310942849,1704825046484,-150.0,0.00035521,2]
[310942851,1704825046493,-10202.757263,0.0003554,2]
[310942852,1704825046502,-685.195491,0.0003554,2]
[310942855,1704825046511,-1421.945398,0.0003554,2]
[310942856,1704825046520,-869.235815,0.00035616,2]
[310942858,1704825046530,-150.0,0.00035616,2]
[310942860,1704825046539,-153.84,0.00035616,2]
[310942863,1704825046548,-150.19,0.00035616,2]
[310942866,1704825046557,-155.0,0.00035617,2]
[310942869,1704825046567,-500.0,0.00035621,2]
[310942872,1704825046576,-200.0,0.00035621,10]
[310942875,1704825046585,-800.0,0.00035621,10]
[310942878,1704825046594,-200.0,0.00035621,2]
[310942879,1704825046603,-869.235815,0.00035695,2]
[310942881,1704825046612,-1223.33622577,0.00035697,2]
[310942884,1704825046621,-3543.0,0.000357,3]
[310942887,1704825046631,-37183.0,0.000357,3]
[310942890,1704825046640,-323.03,0.00035764,2]
[310942892,1704825046649,-869.235815,0.00035773,2]
[310942894,1704825046658,-781.39,0.00035798,2]
[310942897,1704825046670,-152.65,0.000358,7]
[310942899,1704825046679,-52913.10930921,0.000358,2]
[310942901,1704825046688,-869.235815,0.00035851,2]
[310942902,1704825046698,-869.235815,0.00035929,2]
[310942904,1704825046706,-168.251256,0.00035968,2]
[310942906,1704825046716,-194.328221,0.00035968,2]
[310942908,1704825046725,-176.909052,0.00035968,2]
[310942911,1704825046734,-10202.757263,0.00035968,2]
[310942913,1704825046743,-685.195491,0.00035968,2]
[310942915,1704825046753,-1421.945398,0.00035968,2]
[310942917,1704825046762,-21599.52770044,0.00036,4]
[310942932,1704825046896,-803.05557728,0.00036,4]
[310943162,1704825049237,-151.57908915,0.00032,2]
[310943164,1704825049246,-117.80332482,0.00032,2]
[310943170,1704825049290,-33.77576433,0.00032,2]
[310943172,1704825049300,-151.57908915,0.00032,2]
[310943175,1704825049310,-151.57908915,0.00032,2]
[310943176,1704825049321,-66.11531221,0.00032,2]
[310943180,1704825049346,-85.46377694,0.00032,2]
[310943182,1704825049357,-151.57908915,0.00032,2]
[310943184,1704825049367,-71.20713391,0.00032,2]
[310943186,1704825049380,-80.37195524,0.00032,2]
[310943188,1704825049389,-151.57908915,0.00032,2]
[310943190,1704825049398,-151.57908915,0.00032,2]
[310943192,1704825049409,-151.57908915,0.00032,2]
[310943195,1704825049420,-151.57908915,0.00032,2]
[310943196,1704825049431,-151.57908915,0.00032,2]
[310943199,1704825049440,-151.57908915,0.00032,2]
[310943201,1704825049450,-151.57908915,0.00032,2]
[310943203,1704825049460,-151.57908915,0.00032,2]
[310943205,1704825049470,-151.57908915,0.00032,2]
[310943207,1704825049481,-151.57908915,0.00032,2]
[310943208,1704825049499,-1000.0,0.00033,2]
[310943209,1704825049513,-62536.12115274,0.00036,4]
[310943210,1704825049527,-1374.76356697,0.00036,4]
[310943221,1704825049800,-151.57908915,0.00032,2]
[310943223,1704825049809,-151.57908915,0.00032,2]
[310943225,1704825049818,-151.57908915,0.00032,2]
[310943226,1704825049830,-680.4231619,0.00036,4]
[310943238,1704825338708,1000.0,0.00022113,2]
[310943239,1704825364221,647.02148692,0.00021885,2]
[310943249,1704825835206,-500.54284243,0.00022796,2]
[310943250,1704825835238,-277.96277619,0.00022797,2]
[310943251,1704825835259,-155.0,0.00022797,2]
[310943252,1704825835281,-153.49385456,0.00022899,2]
[310943253,1704825835301,-300.0,0.00022999,2]
[310943254,1704825835321,-300.0,0.00022999,2]
[310943255,1704825835340,-300.0,0.00022999,2]
[310943256,1704825835360,-14.00052682,0.00022999,2]
[310943262,1704826166596,155.0,0.00022999,30]
[310943288,1704826232256,-155.0,0.00022995,2]
[310943289,1704826232265,-699.13975309,0.00022996,2]
[310943290,1704826232275,-500.54284243,0.00022996,2]
[310943291,1704826232284,-1394.72050613,0.00022996,2]
[310943292,1704826232294,-3920.49320443,0.00022996,2]
[310943293,1704826232304,-3606.24803211,0.00022996,2]
[310943294,1704826232313,-265.0091565,0.00022997,2]
[310943295,1704826232322,-2717.96324781,0.00022997,2]
[310943296,1704826232335,-784.17302211,0.00022997,2]
[310943297,1704826232346,-2405.49206027,0.00022997,2]
[310943298,1704826232454,-5433.42665168,0.00022997,2]
[310943299,1704826232466,-695.98788026,0.00022997,2]
[310943300,1704826232485,-753.71685939,0.00022997,2]
[310943301,1704826232497,-377.71791048,0.00022997,2]
[310943302,1704826232522,-609.86344662,0.00022997,2]
[310943305,1704826232559,-215.16858361,0.00022995,2]
[310943307,1704826232568,-395.98241504,0.00022997,2]
[310943314,1704826232614,-543.04659869,0.00022997,2]
[310943316,1704826232625,-553.31996326,0.00022997,2]
[310943323,1704826234938,-133064.530582,0.00022997,2]
[310943324,1704826234962,-16225.23417693,0.00022997,2]
[310943325,1704826234986,-209.73653689,0.00022997,2]
[310943326,1704826235010,-3601.31665137,0.00022997,2]
[310943327,1704826235033,-1334.90404338,0.00022997,2]
[310943328,1704826235059,-83980.58528539,0.00022998,2]
[310943329,1704826235087,-155.0,0.00022998,2]
[310943330,1704826235111,-400.0,0.00022998,2]
[310943331,1704826235137,-219.89165673,0.00022998,2]
[310943332,1704826235162,-3052.70643812,0.00022998,2]
[310943333,1704826235186,-363.46963652,0.00022998,2]
[310943334,1704826235209,-858.05863014,0.00022998,2]
[310943335,1704826235232,-174439.39481164,0.00022999,2]
[310943336,1704826235255,-155.0,0.00022999,2]
[310943337,1704826235278,-500.0,0.00022999,2]
[310943338,1704826235301,-810.50467379,0.00022999,2]
[310943351,1704826237999,-186.3,0.00023,2]
[310943352,1704826238009,-251.40943335,0.00023,2]
[310943353,1704826238057,-680.9839473,0.00023,2]
[310943354,1704826238067,-430.68871395,0.00024,2]
[310943355,1704826238077,-1005.5232,0.000249,2]
[310943356,1704826238087,-150.0,0.00024999,2]
[310943357,1704826238097,-167.05182833,0.00025,2]
[310943358,1704826238107,-1016.69878254,0.00025,2]
[310943359,1704826238117,-1581.25327792,0.00025,2]
[310943360,1704826238129,-650.0,0.00025,2]
[310943361,1704826238139,-302.84681763,0.00025,2]
[310943362,1704826238148,-1264.12879631,0.00025074,2]
[310943363,1704826238158,-12487.76,0.00025075,2]
[310943364,1704826238167,-346.34,0.00025694,2]
[310943365,1704826238177,-2542.78,0.00025879,2]
[310943366,1704826238188,-1284.11,0.00025879,2]
[310943367,1704826238198,-150.99,0.00027297,2]
[310943368,1704826238209,-499.99,0.00027297,2]
[310943369,1704826238220,-5743.76088243,0.00027297,2]
[310943370,1704826238243,-4256.22911757,0.00027297,2]
[310943371,1704826238254,-2285.18882456,0.00027297,2]
[310943372,1704826238267,-19156.49507544,0.00027297,2]
[310943373,1704826238278,-710.01,0.00027369,2]
[310943374,1704826238289,-9999.99,0.00027369,2]
[310943375,1704826238300,-155.0,0.00027397,2]
[310943376,1704826238313,-750.0,0.000274,2]
[310943377,1704826238324,-210.0,0.00027499,2]
[310943378,1704826238336,-176.89,0.00027673,2]
[310943379,1704826238347,-200.0,0.00027847,2]
[310943380,1704826238359,-953.03,0.0002786,2]
[310943381,1704826238370,-250.0,0.0002789,2]
[310943382,1704826238390,-155.0,0.00027893,2]
[310943383,1704826238401,-500.0,0.00027922,2]
[310943385,1704826238414,-353.87,0.00027926,2]
[310943387,1704826238426,-460.96,0.00027933,2]
[310943389,1704826238438,-2436.74,0.00027945,2]
[310943391,1704826238450,-346.34,0.00027957,2]
[310943393,1704826238461,-555.15,0.00027972,2]
[310943395,1704826238471,-1000.0,0.00027982,2]
[310943397,1704826238482,-12274.41017462,0.00028,2]
[310943399,1704826238492,-250.0,0.00028004,2]
[310943401,1704826238503,-555.15,0.00028048,2]
[310943403,1704826238515,-150.0,0.00028075,2]
[310943405,1704826238526,-172.21,0.00028106,2]
[310943407,1704826238536,-555.15,0.00028125,2]
[310943409,1704826238545,-555.15,0.00028202,2]
[310943411,1704826238555,-172.21,0.00028269,2]
[310943414,1704826238566,-555.15,0.00028278,2]
[310943416,1704826238575,-555.15,0.00028355,2]
[310943419,1704826238585,-172.21,0.00028431,2]
[310943422,1704826238595,-555.15,0.00028432,2]
[310943425,1704826238605,-555.15,0.00028509,2]
[310943428,1704826238616,-189.97,0.00028539,2]
[310943431,1704826238629,-555.15,0.00028585,2]
[310943434,1704826238638,-172.21,0.00028593,2]
[310943437,1704826238650,-555.15,0.00028662,2]
[310943440,1704826238660,-555.15,0.00028739,2]
[310943443,1704826238669,-172.21,0.00028756,2]
[310943446,1704826238679,-182.58,0.00028767,2]
[310943449,1704826238689,-155.0,0.00028767,2]
[310943452,1704826238698,-555.15,0.00028815,2]
[310943455,1704826238707,-555.15,0.00028892,2]
[310943458,1704826238718,-172.21,0.00028918,2]
[310943462,1704826238729,-555.15,0.00028969,2]
[310943464,1704826238739,-1040.00347398,0.00029,2]
[310943466,1704826238749,-155.0,0.00029,2]
[310943468,1704826238759,-512.95,0.00029001,2]
[310943470,1704826238769,-555.15,0.00029046,2]
[310943472,1704826238779,-172.21,0.00029081,2]
[310943474,1704826238789,-555.15,0.00029122,2]
[310943476,1704826238799,-10046.1,0.00029123,2]
[310943478,1704826238808,-512.95,0.00029154,2]
[310943480,1704826238819,-227.09,0.00029176,2]
[310943482,1704826238828,-555.15,0.00029199,2]
[310943484,1704826238838,-172.21,0.00029243,2]
[310943486,1704826238848,-165.72,0.00029258,2]
[310943488,1704826238857,-555.15,0.00029276,2]
[310943490,1704826238867,-512.95,0.00029306,2]
[310943492,1704826238878,-555.15,0.00029352,2]
[310943494,1704826238889,-172.21,0.00029405,2]
[310943496,1704826238898,-555.15,0.00029429,2]
[310943498,1704826238908,-793.0,0.00029437,2]
[310943500,1704826238918,-692.2,0.00029437,2]
[310943502,1704826238927,-512.95,0.00029459,2]
[310943504,1704826238937,-172.21,0.00029568,2]
[310943506,1704826238946,-512.95,0.00029612,2]
[310943508,1704826238956,-442.51007546,0.00029764,2]
[310943510,1704826238969,-70.43992454,0.00029764,2]
[310943513,1704826238979,-201.06310157,0.00029799,2]
[310943515,1704826238989,-195.49419204,0.000298,2]
[310943517,1704826238999,-150.8,0.00029822,2]
[310943519,1704826239011,-167.16774484,0.0002989,2]
[310943521,1704826239022,-51889.0069,0.000299,2]
[310943523,1704826239031,-512.95,0.00029917,2]
[310943525,1704826239041,-167.0,0.00029985,2]
[310943527,1704826239055,-6826.02809977,0.0003,4]
[310943529,1704826239067,-200.0,0.0003,2]
[310943531,1704826239077,-690.39236906,0.0003,2]
[310943533,1704826239087,-155.0,0.0003,2]
[310943535,1704826239097,-18985.51868976,0.0003,4]
[310943537,1704826239106,-2733.58668761,0.0003,2]
[310943539,1704826239116,-1161.1637197,0.0003,4]
[310943541,1704826239128,-155.0,0.0003,4]
[310943543,1704826239137,-24737.46801816,0.0003,2]
[310943545,1704826239147,-153.0,0.0003,2]
[310943547,1704826239156,-512.95,0.00030069,2]
[310943549,1704826239166,-285.68297929,0.000301,4]
[310943551,1704826239177,-10000.0,0.00030137,2]
[310943553,1704826239186,-155.0,0.00030137,2]
[310943555,1704826239195,-944.0,0.00030154,2]
[310943557,1704826239204,-1234.0,0.00030154,2]
[310943559,1704826239214,-1137.0,0.00030154,2]
[310943560,1704826239223,-810.855,0.00030154,2]
[310943561,1704826239232,-881.0,0.00030154,2]
[310943562,1704826239241,-458.722,0.00030154,2]
[310943563,1704826239250,-318.0,0.00030154,2]
[310943564,1704826239259,-2266.0,0.00030154,2]
[310943565,1704826239269,-150.0,0.00030154,2]
[310943566,1704826239278,-1277.04,0.00030154,2]
[310943567,1704826239286,-2899.0,0.00030154,2]
[310943593,1704826239569,-1127.581,0.00030154,2]
[310943595,1704826239584,-3894.148,0.00030154,2]
[310943597,1704826239593,-150.0,0.00030154,2]
[310943599,1704826239602,-150.208,0.00030154,2]
[310943601,1704826239611,-1027.0,0.00030154,2]
[310943603,1704826239623,-346.34,0.00030221,2]
[310943605,1704826239632,-512.95,0.00030222,2]
[310943607,1704826239641,-293.0,0.00030249,2]
[310943609,1704826239650,-6506.45579142,0.00030257,2]
[310943612,1704826239665,-14560.91190858,0.00030257,2]
[310943614,1704826239673,-153.0,0.00030257,2]
[310943616,1704826239682,-150.8,0.00030332,2]
[310943618,1704826239692,-153.84,0.00030372,2]
[310943620,1704826239701,-512.95,0.00030375,2]
[310943622,1704826239710,-692.2,0.00030415,2]
[310943623,1704826239719,-157.4,0.000305,2]
[310943626,1704826239729,-157.4,0.000305,2]
[310943628,1704826239739,-512.95,0.00030527,2]
[310943630,1704826239748,-227.09,0.00030634,2]
[310943632,1704826239757,-512.95,0.0003068,2]
[310943634,1704826239766,-512.95,0.00030833,2]
[310943636,1704826239775,-150.8,0.00030842,2]
[310943637,1704826239785,-512.95,0.00030985,2]
[310943640,1704826239820,-174.26,0.00030994,2]
[310943642,1704826239830,-5940.0,0.00031,2]
[310943643,1704826239840,-512.95,0.00031138,2]
[310943646,1704826239850,-167.0,0.00031222,2]
[310943648,1704826239859,-512.95,0.0003129,2]
[310943650,1704826239868,-153.84,0.00031293,2]
[310943651,1704826239879,-363.58513325,0.00031294,2]
[310943653,1704826239888,-212.9203049,0.00031294,4]
[310943656,1704826239898,-953.03,0.00031342,2]
[310943658,1704826239907,-150.8,0.00031352,2]
[310943660,1704826239916,-290.93,0.00031362,2]
[310943661,1704826239925,-290.93,0.00031362,2]
[310943664,1704826239934,-290.93,0.00031362,2]
[310943666,1704826239944,-290.93,0.00031362,2]
[310943668,1704826239952,-290.93,0.00031362,2]
[310943669,1704826239962,-290.93,0.00031362,2]
[310943672,1704826239971,-290.93,0.00031362,2]
[310943673,1704826239980,-290.93,0.00031362,2]
[310943676,1704826239990,-290.93,0.00031362,2]
[310943678,1704826240001,-290.93,0.00031362,2]
[310943680,1704826240010,-107643.0,0.00031363,2]
[310943682,1704826240019,-692.2,0.00031394,2]
[310943684,1704826240029,-512.95,0.00031443,2]
[310943686,1704826240038,-155.0,0.00031507,2]
[310943688,1704826240047,-512.95,0.00031596,2]
[310943689,1704826240058,-330.11,0.00031644,2]
[310943690,1704826240067,-512.95,0.00031748,2]
[310943691,1704826240077,-150.8,0.00031862,2]
[310943692,1704826240086,-537.5464,0.00031899,2]
[310943693,1704826240096,-2000.0,0.000319,4]
[310943694,1704826240105,-277.35407447,0.000319,5]
[310943695,1704826240114,-8359.8173,0.000319,2]
[310943696,1704826240124,-156.21290735,0.000319,5]
[310943697,1704826240133,-208.0,0.000319,2]
[310943698,1704826240142,-14411.615,0.000319,2]
[310943699,1704826240152,-300.0,0.000319,11]
[310943700,1704826240161,-212.92030489,0.000319,4]
[310943701,1704826240170,-512.95,0.00031901,2]
[310943702,1704826240179,-951.48373115,0.00031997,2]
[310943703,1704826240188,-1754.20743742,0.00031999,4]
[310943704,1704826240197,-11790.17837994,0.00031999,3]
[310943705,1704826240207,-1000.0,0.00031999,2]
[310943706,1704826240216,-1000.0,0.00031999,2]
[310943707,1704826240225,-1000.0,0.00031999,2]
[310943708,1704826240235,-1000.0,0.00031999,2]
[310943709,1704826240245,-1000.0,0.00031999,2]
[310943710,1704826240254,-1000.0,0.00031999,2]
[310943711,1704826240263,-1000.0,0.00031999,2]
[310943712,1704826240273,-1000.0,0.00031999,2]
[310943713,1704826240283,-1000.0,0.00031999,2]
[310943714,1704826240292,-1000.0,0.00031999,2]
[310943715,1704826240302,-1000.0,0.00031999,2]
[310943716,1704826240311,-1000.0,0.00031999,2]
[310943717,1704826240320,-1140.57224513,0.00031999,2]
[310943718,1704826240330,-155.0,0.00032,2]
[310943719,1704826240339,-334464.83477498,0.00032,2]
[310943720,1704826240352,-415.94592852,0.00032,2]
[310943721,1704826240363,-577.53695821,0.00032,2]
[310943722,1704826240385,-948.984565,0.00032,2]
[310943723,1704826240404,-948.19036636,0.00032,2]
[310943724,1704826240438,-351088.83966507,0.00032,2]
[310943725,1704826240447,-200.0,0.00032,2]
[310943726,1704826240456,-177.0,0.00032,2]
[310943727,1704826240466,-406.91218155,0.00032,2]
[310943728,1704826240475,-406.91218155,0.00032,2]
[310943729,1704826240484,-406.91218155,0.00032,2]
[310943730,1704826240493,-153.0,0.00032,2]
[310943731,1704826240502,-153.86,0.00032039,2]
[310943732,1704826240511,-227.09,0.00032093,2]
[310943733,1704826240521,-153.84,0.00032213,2]
[310943734,1704826240530,-692.2,0.00032372,2]
[310943735,1704826240539,-150.8,0.00032372,2]
[310943736,1704826240548,-167.0,0.00032459,2]
[310943737,1704826240557,-346.34,0.00032485,2]
[310943738,1704826240567,-204.0,0.00032547,2]
[310943739,1704826240576,-300.0,0.00032552,2]
[310943740,1704826240586,-291.84139356,0.00032552,2]
[310943741,1704826240595,-530.29226633,0.00032876,2]
[310943742,1704826240604,-150.92,0.00032877,15]
[310943743,1704826240614,-155.0,0.00032877,2]
[310943744,1704826240625,-150.8,0.00032882,2]
[310943745,1704826240634,-1000.0,0.000329,2]
[310943746,1704826240643,-3331.9915966,0.00032913,4]
[310943747,1704826240653,-793.0,0.00033116,2]
[310943748,1704826240662,-153.84,0.00033134,2]
[310943749,1704826240671,-944.0,0.00033154,2]
[310943750,1704826240680,-1234.0,0.00033154,2]
[310943751,1704826240690,-518.586,0.00033154,2]
[310943752,1704826240699,-318.0,0.00033154,2]
[310943753,1704826240708,-150.0,0.00033154,2]
[310943754,1704826240717,-717.691,0.00033154,2]
[310943755,1704826240726,-150.0,0.00033154,2]
[310943756,1704826240736,-474.793,0.00033154,2]
[310943757,1704826240746,-277.3540744,0.00033235,6]
[310943758,1704826240755,-692.2,0.00033351,2]
[310943759,1704826240765,-150.8,0.00033392,2]
[310943760,1704826240774,-363.58513323,0.00033463,2]
[310943761,1704826240783,-1031.64,0.000335,2]
[310943762,1704826240793,-1031.64,0.000335,2]
[310943763,1704826240803,-1031.64,0.000335,2]
[310943764,1704826240812,-1031.64,0.000335,2]
[310943765,1704826240821,-1031.64,0.000335,2]
[310943766,1704826240831,-1031.64,0.000335,2]
[310943767,1704826240841,-1031.64,0.000335,2]
[310943768,1704826240850,-1031.64,0.000335,2]
[310943769,1704826240860,-1031.64,0.000335,2]
[310943770,1704826240869,-1031.64,0.000335,2]
[310943771,1704826240880,-1031.64,0.000335,2]
[310943772,1704826240889,-1031.64,0.000335,2]
[310943773,1704826240898,-1031.64,0.000335,2]
[310943774,1704826240908,-1031.64,0.000335,2]
[310943775,1704826240918,-1031.64,0.000335,2]
[310943776,1704826240927,-1031.64,0.000335,2]
[310943777,1704826240936,-1031.64,0.000335,2]
[310943778,1704826240946,-1031.64,0.000335,2]
[310943779,1704826240955,-1031.64,0.000335,2]
[310943780,1704826240965,-1031.64,0.000335,2]
[310943781,1704826240974,-227.09,0.00033552,2]
[310943782,1704826240984,-3331.99159653,0.00033663,5]
[310943783,1704826240993,-167.0,0.00033696,2]
[310943784,1704826241003,-223.20855706,0.000338,2]
[310943785,1704826241013,-174.26,0.00033816,2]
[310943786,1704826241022,-600.0,0.000339,12]
[310943787,1704826241032,-150.8,0.00033902,2]
[310943788,1704826241042,-1000.0,0.00034,4]
[310943789,1704826241053,-157.4,0.00034,2]
[310943790,1704826241065,-157.4,0.00034,2]
[310943791,1704826241074,-157.4,0.00034,2]
[310943792,1704826241083,-157.4,0.00034,2]
[310943793,1704826241093,-150.91,0.00034,2]
[310943794,1704826241102,-150.91,0.00034,2]
[310943795,1704826241111,-150.91,0.00034,2]
[310943796,1704826241121,-150.91,0.00034,2]
[310943797,1704826241131,-150.91,0.00034,2]
[310943798,1704826241141,-150.91,0.00034,2]
[310943799,1704826241151,-150.91,0.00034,2]
[310943800,1704826241161,-150.91,0.00034,2]
[310943801,1704826241170,-150.91,0.00034,2]
[310943802,1704826241179,-150.91,0.00034,2]
[310943803,1704826241188,-150.91,0.00034,2]
[310943804,1704826241197,-150.91,0.00034,2]
[310943805,1704826241207,-150.91,0.00034,2]
[310943806,1704826241216,-150.91,0.00034,2]
[310943807,1704826241225,-150.91,0.00034,2]
[310943808,1704826241234,-150.91,0.00034,2]
[310943809,1704826241244,-150.91,0.00034,2]
[310943810,1704826241253,-150.91,0.00034,2]
[310943811,1704826241262,-150.91,0.00034,2]
[310943812,1704826241272,-150.91,0.00034,2]
[310943813,1704826241281,-150.91,0.00034,2]
[310943815,1704826241291,-150.91,0.00034,2]
[310943818,1704826241299,-150.91,0.00034,2]
[310943820,1704826241309,-150.91,0.00034,2]
[310943821,1704826241318,-150.91,0.00034,2]
[310943823,1704826241327,-150.91,0.00034,2]
[310943825,1704826241336,-150.91,0.00034,2]
[310943827,1704826241345,-150.91,0.00034,2]
[310943829,1704826241355,-150.91,0.00034,2]
[310943831,1704826241364,-150.91,0.00034,2]
[310943833,1704826241374,-150.91,0.00034,2]
[310943834,1704826241383,-150.91,0.00034,2]
[310943835,1704826241392,-150.91,0.00034,2]
[310943836,1704826241401,-153.84,0.00034054,2]
[310943837,1704826241410,-200.0,0.00034121,7]
[310943838,1704826241419,-432.95697207,0.000342,2]
[310943839,1704826241428,-155.0,0.00034247,2]
[310943840,1704826241437,-1000.0,0.000343,2]
[310943841,1704826241446,-692.2,0.00034329,2]
[310943842,1704826241455,-150.8,0.00034412,2]
[310943843,1704826241464,-3331.99159653,0.00034412,6]
[310943844,1704826241472,-835.0,0.000345,2]
[310943845,1704826241481,-1717.504321,0.0003452,2]
[310943846,1704826241491,-6011.265123,0.0003452,2]
[310943847,1704826241500,-929.479698,0.0003452,2]
[310943848,1704826241509,-803.75,0.00034521,2]
[310943849,1704826241517,-277.3540744,0.00034569,7]
[310943850,1704826241527,-150.1,0.00034602,2]
[310943851,1704826241536,-180.0,0.00034658,2]
[310943852,1704826241545,-180.0,0.00034658,2]
[310943853,1704826241554,-204.0,0.00034659,6]
[310943854,1704826241563,-346.34,0.00034749,2]
[310943855,1704826241572,-2576.256481,0.00034794,2]
[310943856,1704826241581,-9016.897685,0.00034794,2]
[310943857,1704826241590,-1394.219548,0.00034794,2]
[310943858,1704826241599,-953.03,0.00034825,2]
[310943859,1704826241608,-270.86215748,0.000349,2]
[310943860,1704826241617,-1587.83734612,0.000349,2]
[310943861,1704826241628,-1587.83734612,0.000349,2]
[310943862,1704826241637,-687.02354933,0.00034916,4]
[310943863,1704826241646,-150.8,0.00034922,2]
[310943864,1704826241655,-3435.008642,0.00034931,2]
[310943865,1704826241664,-12022.530247,0.00034931,2]
[310943866,1704826241673,-1858.959397,0.00034931,2]
[310943867,1704826241682,-167.0,0.00034933,2]
[310943868,1704826241691,-153.84,0.00034974,2]
[310943869,1704826241700,-1507.63255675,0.00034998,2]
[310943870,1704826241709,-16404.83531666,0.00035,2]
[310943871,1704826241718,-2500.0,0.00035,2]
[310943872,1704826241728,-227.09,0.00035011,2]
[310943873,1704826241737,-156.21290733,0.00035014,7]
[310943874,1704826241746,-1587.83734612,0.00035058,2]
[310943875,1704826241755,-4293.760803,0.00035068,2]
[310943876,1704826241765,-15028.162809,0.00035068,2]
[310943877,1704826241774,-2323.699247,0.00035068,2]
[310943878,1704826241782,-3331.99159653,0.00035162,7]
[310943879,1704826241792,-598.27182723,0.00035227,4]
[310943880,1704826241801,-692.2,0.00035308,2]
[310943881,1704826241810,-6011.265124,0.00035342,2]
[310943882,1704826241819,-21039.427933,0.00035342,2]
[310943883,1704826241829,-3253.178946,0.00035342,2]
[310943884,1704826241838,-13373.86963969,0.000354,2]
[310943885,1704826241847,-150.8,0.00035432,2]
[310943886,1704826241856,-1000.0,0.000356,2]
[310943887,1704826241866,-695.388652,0.00035616,2]
[310943888,1704826241875,-200.0,0.00035616,2]
[310943889,1704826241884,-150.12,0.00035616,2]
[310943890,1704826241894,-155.0,0.00035617,2]
[310943891,1704826241904,-363.58513323,0.00035631,2]
[310943892,1704826241914,-500.0,0.00035641,2]
[310943893,1704826241923,-200.0,0.00035641,10]
[310943894,1704826241934,-200.0,0.00035641,2]
[310943895,1704826241943,-695.388652,0.00035695,2]
[310943896,1704826241953,-695.388652,0.00035773,2]
[310943897,1704826241963,-229.0,0.00035795,5]
[310943898,1704826241972,-803.75,0.00035798,2]
[310943899,1704826241982,-695.388652,0.00035851,2]
[310943900,1704826241991,-153.84,0.00035895,2]
[310943901,1704826242001,-6148.5797,0.00035897,2]
[310943902,1704826242010,-277.3540744,0.00035904,7]
[310943903,1704826242020,-3331.99159653,0.00035912,8]
[310943904,1704826242030,-695.388652,0.00035929,2]
[310943905,1704826242039,-951.48373115,0.00035965,2]
[310943906,1704826242049,-3000.0,0.00035968,2]
[310943907,1704826242059,-800.0,0.00035973,2]
[310943908,1704826242069,-202.53914952,0.00035995,4]
[310943909,1704826242078,-124229.5849577,0.00035997,2]
[310943910,1704826242087,-466.46,0.00035997,4]
[310943911,1704826242097,-13758.40676925,0.00035997,4]
[310943912,1704826242107,-269.25926528,0.00035998,2]
[310943913,1704826242116,-237.39756375,0.00035998,2]
[310943914,1704826242127,-264.73235728,0.00035999,4]
[310943915,1704826242136,-29652.22559975,0.00036,4]
[310943916,1704826242146,-2000.0,0.00036,2]
[310943917,1704826242156,-2000.0,0.00036,2]
[310943918,1704826242165,-200.0,0.00036,2]
[310943919,1704826242175,-155.0,0.00036,4]
[310943920,1704826242184,-1000.0,0.00036,6]
[310943921,1704826242193,-682.25877431,0.00036,4]
[310943922,1704826242203,-695.388652,0.00036007,2]
[310943923,1704826242212,-695.388652,0.00036085,2]